{"text_format":"3","workbook":"xlsx","n_sheets":1,"sheets":["Lista zaliha"],"not_rendered":{"images":1,"defined_names":3},"read":"whole","date_system":"1900"}

{"sheet":"Lista zaliha","index":0,"n_rows":28,"n_cols":13,"rows_kept":28}
[{"$nulls":12}," "]
[{"$nulls":10},"Markirati stavke za ponovno poručivanje?","Da"]
[null,"Ponovno poručivanje","ID zalihe","Ime","Opis","Cena po jedinici","Količina na lageru","Vrednost zaliha","Nivo ponovnog poručivanja","Vreme ponovnog poručivanja u danima","Količina za ponovno poručivanje","Da li je obustavljeno?"]
[null,{"$f":"IFERROR((Tabela_Lista_Zaliha[[#This Row],[Količina na lageru]]<=Tabela_Lista_Zaliha[[#This Row],[Nivo ponovnog poručivanja]])*(Tabela_Lista_Zaliha[[#This Row],[Da li je obustavljeno?]]=\"\")*valHighlight,0)","v":1},"IN0001","Stavka 1","Opis 1",{"v":51,"d":"51.00 RSD"},25,{"$f":"Tabela_Lista_Zaliha[[#This Row],[Cena po jedinici]]*Tabela_Lista_Zaliha[[#This Row],[Količina na lageru]]","v":{"v":1275,"d":"1,275.00 RSD"}},29,13,50]
[null,{"$f":"IFERROR((Tabela_Lista_Zaliha[[#This Row],[Količina na lageru]]<=Tabela_Lista_Zaliha[[#This Row],[Nivo ponovnog poručivanja]])*(Tabela_Lista_Zaliha[[#This Row],[Da li je obustavljeno?]]=\"\")*valHighlight,0)","v":1},"IN0002","Stavka 2","Opis 2",{"v":93,"d":"93.00 RSD"},132,{"$f":"Tabela_Lista_Zaliha[[#This Row],[Cena po jedinici]]*Tabela_Lista_Zaliha[[#This Row],[Količina na lageru]]","v":{"v":12276,"d":"12,276.00 RSD"}},231,4,50]
[null,{"$f":"IFERROR((Tabela_Lista_Zaliha[[#This Row],[Količina na lageru]]<=Tabela_Lista_Zaliha[[#This Row],[Nivo ponovnog poručivanja]])*(Tabela_Lista_Zaliha[[#This Row],[Da li je obustavljeno?]]=\"\")*valHighlight,0)","v":0},"IN0003","Stavka 3","Opis 3",{"v":57,"d":"57.00 RSD"},151,{"$f":"Tabela_Lista_Zaliha[[#This Row],[Cena po jedinici]]*Tabela_Lista_Zaliha[[#This Row],[Količina na lageru]]","v":{"v":8607,"d":"8,607.00 RSD"}},114,11,150]
[null,{"$f":"IFERROR((Tabela_Lista_Zaliha[[#This Row],[Količina na lageru]]<=Tabela_Lista_Zaliha[[#This Row],[Nivo ponovnog poručivanja]])*(Tabela_Lista_Zaliha[[#This Row],[Da li je obustavljeno?]]=\"\")*valHighlight,0)","v":0},"IN0004","Stavka 4","Opis 4",{"v":19,"d":"19.00 RSD"},186,{"$f":"Tabela_Lista_Zaliha[[#This Row],[Cena po jedinici]]*Tabela_Lista_Zaliha[[#This Row],[Količina na lageru]]","v":{"v":3534,"d":"3,534.00 RSD"}},158,6,50]
[null,{"$f":"IFERROR((Tabela_Lista_Zaliha[[#This Row],[Količina na lageru]]<=Tabela_Lista_Zaliha[[#This Row],[Nivo ponovnog poručivanja]])*(Tabela_Lista_Zaliha[[#This Row],[Da li je obustavljeno?]]=\"\")*valHighlight,0)","v":0},"IN0005","Stavka 5","Opis 5",{"v":75,"d":"75.00 RSD"},62,{"$f":"Tabela_Lista_Zaliha[[#This Row],[Cena po jedinici]]*Tabela_Lista_Zaliha[[#This Row],[Količina na lageru]]","v":{"v":4650,"d":"4,650.00 RSD"}},39,12,50]
[null,{"$f":"IFERROR((Tabela_Lista_Zaliha[[#This Row],[Količina na lageru]]<=Tabela_Lista_Zaliha[[#This Row],[Nivo ponovnog poručivanja]])*(Tabela_Lista_Zaliha[[#This Row],[Da li je obustavljeno?]]=\"\")*valHighlight,0)","v":1},"IN0006","Stavka 6","Opis 6",{"v":11,"d":"11.00 RSD"},5,{"$f":"Tabela_Lista_Zaliha[[#This Row],[Cena po jedinici]]*Tabela_Lista_Zaliha[[#This Row],[Količina na lageru]]","v":{"v":55,"d":"55.00 RSD"}},9,13,150]
[null,{"$f":"IFERROR((Tabela_Lista_Zaliha[[#This Row],[Količina na lageru]]<=Tabela_Lista_Zaliha[[#This Row],[Nivo ponovnog poručivanja]])*(Tabela_Lista_Zaliha[[#This Row],[Da li je obustavljeno?]]=\"\")*valHighlight,0)","v":0},"IN0007","Stavka 7","Opis 7",{"v":56,"d":"56.00 RSD"},58,{"$f":"Tabela_Lista_Zaliha[[#This Row],[Cena po jedinici]]*Tabela_Lista_Zaliha[[#This Row],[Količina na lageru]]","v":{"v":3248,"d":"3,248.00 RSD"}},109,7,100,"Da"]
[null,{"$f":"IFERROR((Tabela_Lista_Zaliha[[#This Row],[Količina na lageru]]<=Tabela_Lista_Zaliha[[#This Row],[Nivo ponovnog poručivanja]])*(Tabela_Lista_Zaliha[[#This Row],[Da li je obustavljeno?]]=\"\")*valHighlight,0)","v":1},"IN0008","Stavka 8","Opis 8",{"v":38,"d":"38.00 RSD"},101,{"$f":"Tabela_Lista_Zaliha[[#This Row],[Cena po jedinici]]*Tabela_Lista_Zaliha[[#This Row],[Količina na lageru]]","v":{"v":3838,"d":"3,838.00 RSD"}},162,3,100]
[null,{"$f":"IFERROR((Tabela_Lista_Zaliha[[#This Row],[Količina na lageru]]<=Tabela_Lista_Zaliha[[#This Row],[Nivo ponovnog poručivanja]])*(Tabela_Lista_Zaliha[[#This Row],[Da li je obustavljeno?]]=\"\")*valHighlight,0)","v":0},"IN0009","Stavka 9","Opis 9",{"v":59,"d":"59.00 RSD"},122,{"$f":"Tabela_Lista_Zaliha[[#This Row],[Cena po jedinici]]*Tabela_Lista_Zaliha[[#This Row],[Količina na lageru]]","v":{"v":7198,"d":"7,198.00 RSD"}},82,3,150]
[null,{"$f":"IFERROR((Tabela_Lista_Zaliha[[#This Row],[Količina na lageru]]<=Tabela_Lista_Zaliha[[#This Row],[Nivo ponovnog poručivanja]])*(Tabela_Lista_Zaliha[[#This Row],[Da li je obustavljeno?]]=\"\")*valHighlight,0)","v":1},"IN0010","Stavka 10","Opis 10",{"v":50,"d":"50.00 RSD"},175,{"$f":"Tabela_Lista_Zaliha[[#This Row],[Cena po jedinici]]*Tabela_Lista_Zaliha[[#This Row],[Količina na lageru]]","v":{"v":8750,"d":"8,750.00 RSD"}},283,8,150]
[null,{"$f":"IFERROR((Tabela_Lista_Zaliha[[#This Row],[Količina na lageru]]<=Tabela_Lista_Zaliha[[#This Row],[Nivo ponovnog poručivanja]])*(Tabela_Lista_Zaliha[[#This Row],[Da li je obustavljeno?]]=\"\")*valHighlight,0)","v":1},"IN0011","Stavka 11","Opis 11",{"v":59,"d":"59.00 RSD"},176,{"$f":"Tabela_Lista_Zaliha[[#This Row],[Cena po jedinici]]*Tabela_Lista_Zaliha[[#This Row],[Količina na lageru]]","v":{"v":10384,"d":"10,384.00 RSD"}},229,1,100]
[null,{"$f":"IFERROR((Tabela_Lista_Zaliha[[#This Row],[Količina na lageru]]<=Tabela_Lista_Zaliha[[#This Row],[Nivo ponovnog poručivanja]])*(Tabela_Lista_Zaliha[[#This Row],[Da li je obustavljeno?]]=\"\")*valHighlight,0)","v":1},"IN0012","Stavka 12","Opis 12",{"v":18,"d":"18.00 RSD"},22,{"$f":"Tabela_Lista_Zaliha[[#This Row],[Cena po jedinici]]*Tabela_Lista_Zaliha[[#This Row],[Količina na lageru]]","v":{"v":396,"d":"396.00 RSD"}},36,12,50]
[null,{"$f":"IFERROR((Tabela_Lista_Zaliha[[#This Row],[Količina na lageru]]<=Tabela_Lista_Zaliha[[#This Row],[Nivo ponovnog poručivanja]])*(Tabela_Lista_Zaliha[[#This Row],[Da li je obustavljeno?]]=\"\")*valHighlight,0)","v":1},"IN0013","Stavka 13","Opis 13",{"v":26,"d":"26.00 RSD"},72,{"$f":"Tabela_Lista_Zaliha[[#This Row],[Cena po jedinici]]*Tabela_Lista_Zaliha[[#This Row],[Količina na lageru]]","v":{"v":1872,"d":"1,872.00 RSD"}},102,9,100]
[null,{"$f":"IFERROR((Tabela_Lista_Zaliha[[#This Row],[Količina na lageru]]<=Tabela_Lista_Zaliha[[#This Row],[Nivo ponovnog poručivanja]])*(Tabela_Lista_Zaliha[[#This Row],[Da li je obustavljeno?]]=\"\")*valHighlight,0)","v":1},"IN0014","Stavka 14","Opis 14",{"v":42,"d":"42.00 RSD"},62,{"$f":"Tabela_Lista_Zaliha[[#This Row],[Cena po jedinici]]*Tabela_Lista_Zaliha[[#This Row],[Količina na lageru]]","v":{"v":2604,"d":"2,604.00 RSD"}},83,2,100]
[null,{"$f":"IFERROR((Tabela_Lista_Zaliha[[#This Row],[Količina na lageru]]<=Tabela_Lista_Zaliha[[#This Row],[Nivo ponovnog poručivanja]])*(Tabela_Lista_Zaliha[[#This Row],[Da li je obustavljeno?]]=\"\")*valHighlight,0)","v":0},"IN0015","Stavka 15","Opis 15",{"v":32,"d":"32.00 RSD"},46,{"$f":"Tabela_Lista_Zaliha[[#This Row],[Cena po jedinici]]*Tabela_Lista_Zaliha[[#This Row],[Količina na lageru]]","v":{"v":1472,"d":"1,472.00 RSD"}},23,15,50]
[null,{"$f":"IFERROR((Tabela_Lista_Zaliha[[#This Row],[Količina na lageru]]<=Tabela_Lista_Zaliha[[#This Row],[Nivo ponovnog poručivanja]])*(Tabela_Lista_Zaliha[[#This Row],[Da li je obustavljeno?]]=\"\")*valHighlight,0)","v":1},"IN0016","Stavka 16","Opis 16",{"v":90,"d":"90.00 RSD"},96,{"$f":"Tabela_Lista_Zaliha[[#This Row],[Cena po jedinici]]*Tabela_Lista_Zaliha[[#This Row],[Količina na lageru]]","v":{"v":8640,"d":"8,640.00 RSD"}},180,3,50]
[null,{"$f":"IFERROR((Tabela_Lista_Zaliha[[#This Row],[Količina na lageru]]<=Tabela_Lista_Zaliha[[#This Row],[Nivo ponovnog poručivanja]])*(Tabela_Lista_Zaliha[[#This Row],[Da li je obustavljeno?]]=\"\")*valHighlight,0)","v":0},"IN0017","Stavka 17","Opis 17",{"v":97,"d":"97.00 RSD"},57,{"$f":"Tabela_Lista_Zaliha[[#This Row],[Cena po jedinici]]*Tabela_Lista_Zaliha[[#This Row],[Količina na lageru]]","v":{"v":5529,"d":"5,529.00 RSD"}},98,12,50,"Da"]
[null,{"$f":"IFERROR((Tabela_Lista_Zaliha[[#This Row],[Količina na lageru]]<=Tabela_Lista_Zaliha[[#This Row],[Nivo ponovnog poručivanja]])*(Tabela_Lista_Zaliha[[#This Row],[Da li je obustavljeno?]]=\"\")*valHighlight,0)","v":1},"IN0018","Stavka 18","Opis 18",{"v":12,"d":"12.00 RSD"},6,{"$f":"Tabela_Lista_Zaliha[[#This Row],[Cena po jedinici]]*Tabela_Lista_Zaliha[[#This Row],[Količina na lageru]]","v":{"v":72,"d":"72.00 RSD"}},7,13,50]
[null,{"$f":"IFERROR((Tabela_Lista_Zaliha[[#This Row],[Količina na lageru]]<=Tabela_Lista_Zaliha[[#This Row],[Nivo ponovnog poručivanja]])*(Tabela_Lista_Zaliha[[#This Row],[Da li je obustavljeno?]]=\"\")*valHighlight,0)","v":1},"IN0019","Stavka 19","Opis 19",{"v":82,"d":"82.00 RSD"},143,{"$f":"Tabela_Lista_Zaliha[[#This Row],[Cena po jedinici]]*Tabela_Lista_Zaliha[[#This Row],[Količina na lageru]]","v":{"v":11726,"d":"11,726.00 RSD"}},164,12,150]
[null,{"$f":"IFERROR((Tabela_Lista_Zaliha[[#This Row],[Količina na lageru]]<=Tabela_Lista_Zaliha[[#This Row],[Nivo ponovnog poručivanja]])*(Tabela_Lista_Zaliha[[#This Row],[Da li je obustavljeno?]]=\"\")*valHighlight,0)","v":0},"IN0020","Stavka 20","Opis 20",{"v":16,"d":"16.00 RSD"},124,{"$f":"Tabela_Lista_Zaliha[[#This Row],[Cena po jedinici]]*Tabela_Lista_Zaliha[[#This Row],[Količina na lageru]]","v":{"v":1984,"d":"1,984.00 RSD"}},113,14,50]
[null,{"$f":"IFERROR((Tabela_Lista_Zaliha[[#This Row],[Količina na lageru]]<=Tabela_Lista_Zaliha[[#This Row],[Nivo ponovnog poručivanja]])*(Tabela_Lista_Zaliha[[#This Row],[Da li je obustavljeno?]]=\"\")*valHighlight,0)","v":0},"IN0021","Stavka 21","Opis 21",{"v":19,"d":"19.00 RSD"},112,{"$f":"Tabela_Lista_Zaliha[[#This Row],[Cena po jedinici]]*Tabela_Lista_Zaliha[[#This Row],[Količina na lageru]]","v":{"v":2128,"d":"2,128.00 RSD"}},75,11,50]
[null,{"$f":"IFERROR((Tabela_Lista_Zaliha[[#This Row],[Količina na lageru]]<=Tabela_Lista_Zaliha[[#This Row],[Nivo ponovnog poručivanja]])*(Tabela_Lista_Zaliha[[#This Row],[Da li je obustavljeno?]]=\"\")*valHighlight,0)","v":0},"IN0022","Stavka 22","Opis 22",{"v":24,"d":"24.00 RSD"},182,{"$f":"Tabela_Lista_Zaliha[[#This Row],[Cena po jedinici]]*Tabela_Lista_Zaliha[[#This Row],[Količina na lageru]]","v":{"v":4368,"d":"4,368.00 RSD"}},132,15,150]
[null,{"$f":"IFERROR((Tabela_Lista_Zaliha[[#This Row],[Količina na lageru]]<=Tabela_Lista_Zaliha[[#This Row],[Nivo ponovnog poručivanja]])*(Tabela_Lista_Zaliha[[#This Row],[Da li je obustavljeno?]]=\"\")*valHighlight,0)","v":0},"IN0023","Stavka 23","Opis 23",{"v":29,"d":"29.00 RSD"},106,{"$f":"Tabela_Lista_Zaliha[[#This Row],[Cena po jedinici]]*Tabela_Lista_Zaliha[[#This Row],[Količina na lageru]]","v":{"v":3074,"d":"3,074.00 RSD"}},142,1,150,"Da"]
[null,{"$f":"IFERROR((Tabela_Lista_Zaliha[[#This Row],[Količina na lageru]]<=Tabela_Lista_Zaliha[[#This Row],[Nivo ponovnog poručivanja]])*(Tabela_Lista_Zaliha[[#This Row],[Da li je obustavljeno?]]=\"\")*valHighlight,0)","v":0},"IN0024","Stavka 24","Opis 24",{"v":75,"d":"75.00 RSD"},173,{"$f":"Tabela_Lista_Zaliha[[#This Row],[Cena po jedinici]]*Tabela_Lista_Zaliha[[#This Row],[Količina na lageru]]","v":{"v":12975,"d":"12,975.00 RSD"}},127,9,100]
[null,{"$f":"IFERROR((Tabela_Lista_Zaliha[[#This Row],[Količina na lageru]]<=Tabela_Lista_Zaliha[[#This Row],[Nivo ponovnog poručivanja]])*(Tabela_Lista_Zaliha[[#This Row],[Da li je obustavljeno?]]=\"\")*valHighlight,0)","v":0},"IN0025","Stavka 25","Opis 25",{"v":14,"d":"14.00 RSD"},28,{"$f":"Tabela_Lista_Zaliha[[#This Row],[Cena po jedinici]]*Tabela_Lista_Zaliha[[#This Row],[Količina na lageru]]","v":{"v":392,"d":"392.00 RSD"}},21,8,50]